[Event "CZE-ch Youth G10-G12-G14 2022"]
[Site "Luhacovice"]
[Date "2022.03.14"]
[Round "3.33"]
[White "Filipova, Vanesa"]
[Black "Reznickova, Sibyla"]
[Result "1/2-1/2"]
[ECO "D01"]
[WhiteElo "1146"]
[BlackElo "1304"]
[Annotator "NA"]
[PlyCount "112"]
[EventDate "2022.03.12"]
[EventType "swiss"]
[EventCountry "CZE"]
[SourceTitle "playchess.com"]
[Source "ChessBase"]
[SourceQuality "1"]
[TimeControl "40/5400+30:1800+30"]

1. d4 {[%emt 0:57:29]} d5 {[%emt 1:07:23]} 2. Nc3 {[%emt 0:05:57]} Nf6 {[%emt 0:00:30]} 3. Bg5 {[%emt 0:00:30]} Bf5 {[%emt 0:00:30]} 4. e3 {[%emt 0:00:30]} e6 {[%emt 0:00:30]} 5. Bd3 {[%emt 0:00:30]} Bg6 {[%emt 0:00:30]} 6. Nf3 {[%emt 0:00:30]} Nc6 {[%emt 0:00:30]} 7. Ne5 {[%emt 0:00:30]} a6 {[%emt 0:00:30]} 8. Qe2 {[%emt 0:00:30]} Bd6 {[%emt 0:00:30]} 9. Nxc6 {[%emt 0:00:30]} bxc6 {[%emt 0:00:30]} 10. Bxa6 {[%emt 0:00:30]} Qb8 {[%emt 0:00:30]} 11. Rb1 {[%emt 0:00:30]} Bb4 {[%emt 0:00:30]} 12. O-O {[%emt 0:00:30]} Bh5 {[%emt 0:00:30]} 13. Qd3 {[%emt 0:00:30]} Qb6 {[%emt 0:00:30]} 14. a3 {[%emt 0:00:30]} Bxc3 {[%emt 0:00:30]} 15. bxc3 {[%emt 0:00:30]} Qa5 {[%emt 0:00:30]} 16. Bb7 {[%emt 0:00:30]} Rb8 {[%emt 0:00:30]} 17. Bxc6+ {[%emt 0:00:30]} Ke7 {[%emt 0:00:30]} 18. a4 {[%emt 0:00:30]} Bg6 {[%emt 0:00:30]} 19. e4 {[%emt 0:00:30]} Bxe4 {[%emt 0:00:30]} 20. Qg3 {[%emt 0:00:30]} Bxc2 {[%emt 0:00:30]} 21. Bxf6+ {[%emt 0:00:30]} gxf6 {[%emt 0:00:30]} 22. Rxb8 {[%emt 0:00:30]} Rxb8 {[%emt 0:00:30]} 23. Rc1 {[%emt 0:00:30]} Bg6 {[%emt 0:00:30]} 24. h3 {[%emt 0:00:30]} Qb6 {[%emt 0:00:30]} 25. Bb5 {[%emt 0:00:30]} c6 {[%emt 0:00:30]} 26. Bxc6 {[%emt 0:00:30]} Qb2 {[%emt 0:00:30]} 27. Re1 {[%emt 0:00:30]} Rc8 {[%emt 0:00:30]} 28. Bxd5 {[%emt 0:00:30]} Rxc3 {[%emt 0:00:30]} 29. Qg4 {[%emt 0:01:40]} Rc1 {[%emt 0:02:23]} 30. Rxc1 {[%emt 0:03:46]} Qxc1+ {[%emt 0:00:31]} 31. Kh2 {[%emt 0:00:06]} exd5 {[%emt 0:01:11]} 32. Qe2+ {[%emt 0:00:13]} Kd6 {[%emt 0:02:30]} 33. Qa6+ {[%emt 0:00:23]} Qc6 {[%emt 0:00:32]} 34. Qxc6+ {[%emt 0:01:10]} Kxc6 {[%emt 0:00:08]} 35. g4 {[%emt 0:00:12]} Bc2 {[%emt 0:01:15]} 36. a5 {[%emt 0:00:47]} Kb5 {[%emt 0:00:42]} 37. Kg3 {[%emt 0:00:08]} f5 {[%emt 0:01:22]} 38. gxf5 {[%emt 0:00:29]} Bxf5 {[%emt 0:03:55]} 39. h4 {[%emt 0:00:10]} Kxa5 {[%emt 0:00:13]} 40. Kf4 {[%emt 0:00:07]} Be6 {[%emt 0:04:03]} 41. h5 {[%emt 0:30:22]} h6 {[%emt 0:31:36]} 42. Ke5 {[%emt 0:00:10]} Kb4 {[%emt 0:00:20]} 43. f4 {[%emt 0:01:03]} Kc4 {[%emt 0:01:53]} 44. Kf6 {[%emt 0:01:20]} Kxd4 {[%emt 0:01:52]} 45. Kg7 {[%emt 0:00:33]} Ke4 {[%emt 0:00:30]} 46. Kxh6 {[%emt 0:00:12]} d4 {[%emt 0:00:27]} 47. Kg7 {[%emt 0:00:40]} d3 {[%emt 0:00:12]} 48. h6 {[%emt 0:00:04]} Bf5 {[%emt 0:01:58]} 49. Kxf7 {[%emt 0:00:25]} d2 {[%emt 0:00:26]} 50. h7 {[%emt 0:00:09]} Bxh7 {[%emt 0:00:08]} 51. f5 {[%emt 0:00:05]} Bxf5 {[%emt 0:00:32]} 52. Kf6 {[%emt 0:00:12]} d1=Q {[%emt 0:00:10]} 53. Kf7 {[%emt 0:00:09]} Qd7+ {[%emt 0:00:21]} 54. Kf8 {[%emt 0:00:17]} Bg6 {[%emt 0:00:34]} 55. Kg8 {[%emt 0:00:09]} Qf7+ {[%emt 0:00:08]} 56. Kh8 {[%emt 0:00:07]} Qh7# {[%emt 0:00:06]} 1/2-1/2

[Event "CZE-ch Youth G10-G12-G14 2022"]
[Site "Luhacovice"]
[Date "2022.03.14"]
[Round "3.37"]
[White "Brezikova, Beata"]
[Black "Foldynova Julie"]
[Result "1-0"]
[ECO "C20"]
[WhiteElo "1266"]
[BlackElo "1000"]
[Annotator "NA"]
[PlyCount "87"]
[EventDate "2022.03.12"]
[EventType "swiss"]
[EventCountry "CZE"]
[SourceTitle "playchess.com"]
[Source "ChessBase"]
[SourceQuality "1"]
[TimeControl "40/5400+30:1800+30"]

1. e4 {[%emt 0:00:04]} e5 {[%emt 0:00:09]} 2. c3 {[%emt 0:00:17]} Nf6 {[%emt 0:01:14]} 3. d4 {[%emt 0:00:20]} Nxe4 {[%emt 0:00:50]} 4. Bd3 {[%emt 0:00:45]} d5 {[%emt 0:02:03]} 5. dxe5 {[%emt 0:00:25]} Nc6 {[%emt 0:01:34]} 6. Nf3 {[%emt 0:01:08]} Bc5 {[%emt 0:02:00]} 7. O-O {[%emt 0:00:24]} O-O {[%emt 0:01:10]} 8. Qe2 {[%emt 0:02:43]} Bf5 {[%emt 0:04:00]} 9. Bf4 {[%emt 0:03:57]} Re8 {[%emt 0:03:13]} 10. Nbd2 {[%emt 0:03:13]} f6 {[%emt 0:04:05]} 11. Nxe4 {[%emt 0:05:40]} dxe4 {[%emt 0:00:37]} 12. Bxe4 {[%emt 0:00:21]} Bxe4 {[%emt 0:01:06]} 13. Qxe4 {[%emt 0:01:05]} fxe5 {[%emt 0:03:01]} 14. Nxe5 {[%emt 0:06:25]} Nxe5 {[%emt 0:01:39]} 15. Bxe5 {[%emt 0:00:20]} Bd6 {[%emt 0:02:13]} 16. Qd5+ {[%emt 0:04:24]} Kf8 {[%emt 0:02:46]} 17. Bxd6+ {[%emt 0:01:41]} Qxd6 {[%emt 0:01:05]} 18. Qxb7 {[%emt 0:10:08]} Reb8 {[%emt 0:00:14]} 19. Qf3+ {[%emt 0:03:03]} Qf6 {[%emt 0:01:31]} 20. Qxf6+ {[%emt 0:01:27]} gxf6 {[%emt 0:00:03]} 21. b3 {[%emt 0:01:00]} Re8 {[%emt 0:00:51]} 22. f3 {[%emt 0:04:02]} h5 {[%emt 0:01:06]} 23. Rfe1 {[%emt 0:01:03]} a5 {[%emt 0:03:15]} 24. Rad1 {[%emt 0:03:13]} Rxe1+ {[%emt 0:01:12]} 25. Rxe1 {[%emt 0:00:07]} Re8 {[%emt 0:00:24]} 26. Rxe8+ {[%emt 0:00:27]} Kxe8 {[%emt 0:00:03]} 27. Kf2 {[%emt 0:00:36]} Kf7 {[%emt 0:00:44]} 28. a4 {[%emt 0:00:46]} c5 {[%emt 0:01:09]} 29. Ke3 {[%emt 0:02:51]} Ke6 {[%emt 0:00:25]} 30. Ke4 {[%emt 0:03:53]} f5+ {[%emt 0:01:05]} 31. Kf4 {[%emt 0:01:52]} Kd5 {[%emt 0:00:47]} 32. Kxf5 {[%emt 0:00:31]} c4 {[%emt 0:00:11]} 33. bxc4+ {[%emt 0:00:06]} Kxc4 {[%emt 0:00:04]} 34. Kg5 {[%emt 0:00:24]} Kxc3 {[%emt 0:00:42]} 35. f4 {[%emt 0:00:12]} Kb3 {[%emt 0:00:53]} 36. f5 {[%emt 0:00:06]} Kxa4 {[%emt 0:00:50]} 37. f6 {[%emt 0:00:13]} Kb3 {[%emt 0:00:12]} 38. f7 {[%emt 0:00:06]} a4 {[%emt 0:00:18]} 39. f8=Q {[%emt 0:00:06]} a3 {[%emt 0:00:20]} 40. Qf3+ {[%emt 0:00:41]} Kb2 {[%emt 0:01:05]} 41. Qxh5 {[%emt 0:30:20]} a2 {[%emt 0:30:34]} 42. Qe2+ {[%emt 0:00:17]} Ka3 {[%emt 0:00:12]} 43. Qxa2+ {[%emt 0:00:30]} Kxa2 {[%emt 0:00:03]} 44. h4 {[%emt 0:00:07]} 1-0

[Event "CZE-ch Youth G10-G12-G14 2022"]
[Site "Luhacovice"]
[Date "2022.03.14"]
[Round "3.38"]
[White "Archlebova, Stela"]
[Black "Dominikova, Denisa"]
[Result "1/2-1/2"]
[ECO "C47"]
[WhiteElo "1121"]
[BlackElo "1254"]
[Annotator "NA"]
[PlyCount "60"]
[EventDate "2022.03.12"]
[EventType "swiss"]
[EventCountry "CZE"]
[SourceTitle "playchess.com"]
[Source "ChessBase"]
[SourceQuality "1"]
[TimeControl "40/5400+30:1800+30"]

1. e4 {[%emt 0:00:06]} e5 {[%emt 0:00:13]} 2. Nf3 {[%emt 0:00:10]} Nc6 {[%emt 0:00:23]} 3. Nc3 {[%emt 0:00:19]} Nf6 {[%emt 0:00:36]} 4. d4 {[%emt 0:00:34]} exd4 {[%emt 0:00:51]} 5. Nxd4 {[%emt 0:00:13]} Bb4 {[%emt 0:01:11]} 6. Bg5 {[%emt 0:08:57]} h6 {[%emt 0:04:58]} 7. Bh4 {[%emt 0:01:31]} Qe7 {[%emt 0:07:22]} 8. Qd3 {[%emt 0:05:19]} Nxd4 {[%emt 0:05:53]} 9. Qxd4 {[%emt 0:00:42]} Qxe4+ {[%emt 0:01:28]} 10. Qxe4+ {[%emt 0:00:55]} Nxe4 {[%emt 0:00:28]} 11. O-O-O {[%emt 0:00:52]} Nxc3 {[%emt 0:04:48]} 12. Re1+ {[%emt 0:02:05]} Kf8 {[%emt 0:02:31]} 13. bxc3 {[%emt 0:01:19]} Bxc3 {[%emt 0:02:00]} 14. Re3 {[%emt 0:00:27]} Bf6 {[%emt 0:02:11]} 15. Bxf6 {[%emt 0:01:04]} gxf6 {[%emt 0:00:41]} 16. Rf3 {[%emt 0:01:06]} d5 {[%emt 0:07:33]} 17. Rxf6 {[%emt 0:00:45]} Ke7 {[%emt 0:01:12]} 18. Rf4 {[%emt 0:00:27]} Be6 {[%emt 0:02:08]} 19. Bd3 {[%emt 0:01:15]} c5 {[%emt 0:02:03]} 20. Re1 {[%emt 0:00:35]} Kd6 {[%emt 0:03:00]} 21. Bf5 {[%emt 0:00:42]} Rae8 {[%emt 0:03:55]} 22. Bxe6 {[%emt 0:00:56]} fxe6 {[%emt 0:07:17]} 23. Rf7 {[%emt 0:00:54]} Re7 {[%emt 0:01:35]} 24. Rf6 {[%emt 0:00:27]} h5 {[%emt 0:04:41]} 25. f4 {[%emt 0:00:34]} Kd7 {[%emt 0:01:09]} 26. Rg6 {[%emt 0:01:34]} b5 {[%emt 0:05:19]} 27. Rg5 {[%emt 0:01:34]} a5 {[%emt 0:02:47]} 28. Rge5 {[%emt 0:00:23]} Rhh7 {[%emt 0:01:48]} 29. Kb2 {[%emt 0:00:23]} h4 {[%emt 0:03:24]} 30. c3 {[%emt 0:01:24]} Rhg7 {[%emt 0:01:37]} 1/2-1/2

[Event "CZE-ch Youth G10-G12-G14 2022"]
[Site "Luhacovice"]
[Date "2022.03.14"]
[Round "3.39"]
[White "Vacekova Anita"]
[Black "Lackova, Ludmila"]
[Result "1-0"]
[ECO "C42"]
[WhiteElo "1000"]
[BlackElo "1167"]
[Annotator "NA"]
[PlyCount "112"]
[EventDate "2022.03.12"]
[EventType "swiss"]
[EventCountry "CZE"]
[SourceTitle "playchess.com"]
[Source "ChessBase"]
[SourceQuality "1"]
[TimeControl "40/5400+30:1800+30"]

1. e4 {[%emt 0:00:07]} e5 {[%emt 0:00:06]} 2. Nf3 {[%emt 0:00:03]} Nf6 {[%emt 0:00:08]} 3. Nxe5 {[%emt 0:00:16]} d6 {[%emt 0:00:14]} 4. Nf3 {[%emt 0:00:16]} Nxe4 {[%emt 0:00:09]} 5. d4 {[%emt 0:00:33]} d5 {[%emt 0:00:25]} 6. Bd3 {[%emt 0:00:49]} Bf5 {[%emt 0:00:16]} 7. O-O {[%emt 0:01:44]} Be7 {[%emt 0:00:26]} 8. Re1 {[%emt 0:01:46]} O-O {[%emt 0:01:30]} 9. Nbd2 {[%emt 0:01:58]} Nxd2 {[%emt 0:01:35]} 10. Bxf5 {[%emt 0:00:32]} Nc4 {[%emt 0:01:10]} 11. Qd3 {[%emt 0:07:07]} g6 {[%emt 0:01:36]} 12. Bh3 {[%emt 0:03:22]} Bf6 {[%emt 0:01:20]} 13. b3 {[%emt 0:01:59]} Nd6 {[%emt 0:01:23]} 14. Bh6 {[%emt 0:03:22]} Re8 {[%emt 0:01:41]} 15. Rxe8+ {[%emt 0:01:25]} Nxe8 {[%emt 0:02:15]} 16. Re1 {[%emt 0:03:31]} Nc6 {[%emt 0:02:01]} 17. c3 {[%emt 0:04:11]} Bg7 {[%emt 0:01:17]} 18. Bxg7 {[%emt 0:01:41]} Nxg7 {[%emt 0:00:09]} 19. g3 {[%emt 0:01:48]} a6 {[%emt 0:06:59]} 20. Ne5 {[%emt 0:02:15]} Qe8 {[%emt 0:05:24]} 21. Qd2 {[%emt 0:04:46]} Nxe5 {[%emt 0:00:57]} 22. Rxe5 {[%emt 0:01:36]} Qd8 {[%emt 0:03:46]} 23. c4 {[%emt 0:04:02]} dxc4 {[%emt 0:01:10]} 24. bxc4 {[%emt 0:00:15]} b6 {[%emt 0:06:59]} 25. Rd5 {[%emt 0:03:42]} Qf6 {[%emt 0:01:57]} 26. Rd7 {[%emt 0:01:46]} Ne8 {[%emt 0:08:53]} 27. Qf4 {[%emt 0:12:24]} Qxf4 {[%emt 0:18:04]} 28. gxf4 {[%emt 0:00:07]} Rb8 {[%emt 0:02:16]} 29. Bg2 {[%emt 0:03:15]} f5 {[%emt 0:07:00]} 30. Bd5+ {[%emt 0:04:12]} Kh8 {[%emt 0:00:21]} 31. Bf7 {[%emt 0:00:51]} Nd6 {[%emt 0:00:37]} 32. Bd5 {[%emt 0:03:42]} Rc8 {[%emt 0:12:04]} 33. c5 {[%emt 0:03:30]} bxc5 {[%emt 0:03:53]} 34. dxc5 {[%emt 0:02:21]} Ne8 {[%emt 0:01:16]} 35. Bb7 {[%emt 0:01:15]} Rb8 {[%emt 0:00:18]} 36. Bxa6 {[%emt 0:00:45]} Ra8 {[%emt 0:00:13]} 37. Bc4 {[%emt 0:03:51]} Ra4 {[%emt 0:01:28]} 38. Bb5 {[%emt 0:04:54]} Ra8 {[%emt 0:00:17]} 39. a4 {[%emt 0:01:35]} Rb8 {[%emt 0:00:14]} 40. Rf7 {[%emt 0:01:40]} Kg8 {[%emt 0:02:10]} 41. Bxe8 {[%emt 0:31:07]} Rxe8 {[%emt 0:30:14]} 42. Rxc7 {[%emt 0:00:14]} Ra8 {[%emt 0:00:08]} 43. c6 {[%emt 0:01:48]} Rxa4 {[%emt 0:00:07]} 44. Rd7 {[%emt 0:00:51]} Rc4 {[%emt 0:00:26]} 45. c7 {[%emt 0:00:12]} Rc1+ {[%emt 0:00:13]} 46. Kg2 {[%emt 0:00:11]} Rxc7 {[%emt 0:00:04]} 47. Rxc7 {[%emt 0:00:08]} Kh8 {[%emt 0:00:06]} 48. Kh3 {[%emt 0:00:21]} Kg8 {[%emt 0:00:12]} 49. Kh4 {[%emt 0:00:09]} h6 {[%emt 0:00:05]} 50. Kg3 {[%emt 0:00:25]} Kh8 {[%emt 0:00:08]} 51. Kf3 {[%emt 0:00:19]} Kg8 {[%emt 0:00:09]} 52. Ke3 {[%emt 0:00:05]} Kh8 {[%emt 0:00:06]} 53. Kd4 {[%emt 0:00:04]} h5 {[%emt 0:00:12]} 54. Ke5 {[%emt 0:00:14]} h4 {[%emt 0:00:10]} 55. Kf6 {[%emt 0:00:07]} h3 {[%emt 0:00:10]} 56. Kxg6 {[%emt 0:00:20]} Kg8 {[%emt 0:00:04]} 1-0

[Event "CZE-ch Youth G10-G12-G14 2022"]
[Site "Luhacovice"]
[Date "2022.03.14"]
[Round "3.40"]
[White "Koval, Anna"]
[Black "Janouskova, Adela"]
[Result "0-1"]
[ECO "A04"]
[WhiteElo "1278"]
[BlackElo "1585"]
[Annotator "NA"]
[PlyCount "80"]
[EventDate "2022.03.12"]
[EventType "swiss"]
[EventCountry "CZE"]
[SourceTitle "playchess.com"]
[Source "ChessBase"]
[SourceQuality "1"]
[TimeControl "40/5400+30:1800+30"]

1. e4 {[%emt 0:00:08]} c5 {[%emt 0:00:13]} 2. Nc3 {[%emt 0:00:06]} Nc6 {[%emt 0:00:18]} 3. d3 {[%emt 0:00:21]} g6 {[%emt 0:00:50]} 4. g3 {[%emt 0:00:32]} Bg7 {[%emt 0:00:23]} 5. Bg2 {[%emt 0:00:12]} d6 {[%emt 0:00:16]} 6. Nf3 {[%emt 0:00:21]} e6 {[%emt 0:00:23]} 7. O-O {[%emt 0:00:22]} Nge7 {[%emt 0:00:10]} 8. Re1 {[%emt 0:00:44]} O-O {[%emt 0:00:12]} 9. Be3 {[%emt 0:01:16]} Nd4 {[%emt 0:00:48]} 10. Qd2 {[%emt 0:00:58]} Nec6 {[%emt 0:01:42]} 11. Bh6 {[%emt 0:00:13]} Nxf3+ {[%emt 0:01:49]} 12. Bxf3 {[%emt 0:00:17]} Nd4 {[%emt 0:00:08]} 13. Bg2 {[%emt 0:00:23]} Bxh6 {[%emt 0:00:43]} 14. Qxh6 {[%emt 0:01:25]} Nxc2 {[%emt 0:00:10]} 15. e5 {[%emt 0:01:59]} d5 {[%emt 0:03:22]} 16. h4 {[%emt 0:01:55]} Nxa1 {[%emt 0:01:00]} 17. Rxa1 {[%emt 0:00:47]} f6 {[%emt 0:01:39]} 18. h5 {[%emt 0:01:40]} gxh5 {[%emt 0:01:28]} 19. Be4 {[%emt 0:02:17]} dxe4 {[%emt 0:09:56]} 20. Nxe4 {[%emt 0:00:05]} fxe5 {[%emt 0:01:01]} 21. Ng5 {[%emt 0:00:27]} Qe7 {[%emt 0:00:56]} 22. Kg2 {[%emt 0:01:56]} Qg7 {[%emt 0:00:42]} 23. Qxh5 {[%emt 0:00:48]} Qg6 {[%emt 0:01:56]} 24. Qh4 {[%emt 0:01:08]} h6 {[%emt 0:03:58]} 25. Ne4 {[%emt 0:00:35]} Bd7 {[%emt 0:01:20]} 26. Nxc5 {[%emt 0:00:34]} Bc6+ {[%emt 0:00:14]} 27. Kg1 {[%emt 0:00:31]} b6 {[%emt 0:01:30]} 28. Ne4 {[%emt 0:00:20]} Bxe4 {[%emt 0:00:11]} 29. dxe4 {[%emt 0:00:08]} Qg5 {[%emt 0:00:33]} 30. Qh3 {[%emt 0:00:29]} Rf6 {[%emt 0:00:21]} 31. Rc1 {[%emt 0:00:40]} Qxc1+ {[%emt 0:00:21]} 32. Kg2 {[%emt 0:00:12]} Raf8 {[%emt 0:00:12]} 33. Qg4+ {[%emt 0:00:40]} Qg5 {[%emt 0:00:09]} 34. Qe2 {[%emt 0:00:26]} Rxf2+ {[%emt 0:01:01]} 35. Qxf2 {[%emt 0:00:02]} Rxf2+ {[%emt 0:00:03]} 36. Kxf2 {[%emt 0:00:01]} Qd2+ {[%emt 0:00:23]} 37. Kf3 {[%emt 0:00:02]} Qxb2 {[%emt 0:00:07]} 38. Kg4 {[%emt 0:00:15]} Qxa2 {[%emt 0:00:05]} 39. Kh5 {[%emt 0:00:05]} Kh7 {[%emt 0:00:12]} 40. g4 {[%emt 0:00:19]} Qh2# {[%emt 0:00:11]} 0-1

[Event "CZE-ch Youth G10-G12-G14 2022"]
[Site "Luhacovice"]
[Date "2022.03.14"]
[Round "3.42"]
[White "Dufkova, Tereza"]
[Black "Zilava Lucie"]
[Result "1/2-1/2"]
[ECO "C55"]
[WhiteElo "1014"]
[BlackElo "1059"]
[Annotator "NA"]
[PlyCount "86"]
[EventDate "2022.03.12"]
[EventType "swiss"]
[EventCountry "CZE"]
[SourceTitle "playchess.com"]
[Source "ChessBase"]
[SourceQuality "1"]
[TimeControl "40/5400+30:1800+30"]

1. e4 {[%emt 0:00:04]} e5 {[%emt 0:00:05]} 2. Bc4 {[%emt 0:00:06]} Nf6 {[%emt 0:00:17]} 3. Nf3 {[%emt 0:00:34]} Nc6 {[%emt 0:00:14]} 4. Nc3 {[%emt 0:00:05]} Nxe4 {[%emt 0:00:30]} 5. Nxe4 {[%emt 0:00:29]} d5 {[%emt 0:00:11]} 6. Bd3 {[%emt 0:00:28]} dxe4 {[%emt 0:00:26]} 7. Bxe4 {[%emt 0:00:06]} Bg4 {[%emt 0:00:23]} 8. h3 {[%emt 0:00:25]} Bh5 {[%emt 0:00:11]} 9. g4 {[%emt 0:00:34]} Bg6 {[%emt 0:00:21]} 10. Bxg6 {[%emt 0:02:36]} hxg6 {[%emt 0:00:19]} 11. d3 {[%emt 0:00:22]} Bc5 {[%emt 0:04:09]} 12. Be3 {[%emt 0:00:33]} Bxe3 {[%emt 0:03:02]} 13. fxe3 {[%emt 0:00:10]} Qd6 {[%emt 0:02:21]} 14. Qd2 {[%emt 0:03:00]} O-O-O {[%emt 0:00:49]} 15. O-O-O {[%emt 0:04:22]} Rhe8 {[%emt 0:01:29]} 16. e4 {[%emt 0:02:37]} f6 {[%emt 0:07:20]} 17. g5 {[%emt 0:03:06]} f5 {[%emt 0:01:51]} 18. Qc3 {[%emt 0:04:02]} Qb4 {[%emt 0:02:55]} 19. Qxb4 {[%emt 0:00:05]} Nxb4 {[%emt 0:00:16]} 20. Kb1 {[%emt 0:00:22]} Nc6 {[%emt 0:01:56]} 21. exf5 {[%emt 0:00:31]} gxf5 {[%emt 0:00:19]} 22. h4 {[%emt 0:04:58]} Rd6 {[%emt 0:04:23]} 23. h5 {[%emt 0:01:25]} Red8 {[%emt 0:00:31]} 24. h6 {[%emt 0:01:06]} g6 {[%emt 0:03:22]} 25. h7 {[%emt 0:00:12]} Rh8 {[%emt 0:02:04]} 26. c3 {[%emt 0:01:44]} Rd7 {[%emt 0:00:25]} 27. Rh6 {[%emt 0:00:26]} e4 {[%emt 0:03:04]} 28. Nd4 {[%emt 0:01:53]} Nxd4 {[%emt 0:00:38]} 29. cxd4 {[%emt 0:00:11]} e3 {[%emt 0:01:12]} 30. Re1 {[%emt 0:01:33]} Re7 {[%emt 0:00:31]} 31. Rxg6 {[%emt 0:00:21]} Rhxh7 {[%emt 0:01:03]} 32. Rg8+ {[%emt 0:00:53]} Kd7 {[%emt 0:00:10]} 33. g6 {[%emt 0:01:48]} Rh2 {[%emt 0:00:59]} 34. Rf8 {[%emt 0:00:41]} Rg2 {[%emt 0:02:11]} 35. Rxf5 {[%emt 0:00:31]} Rxg6 {[%emt 0:00:30]} 36. Re5 {[%emt 0:01:24]} Rg3 {[%emt 0:01:43]} 37. Rxe7+ {[%emt 0:01:46]} Kxe7 {[%emt 0:00:21]} 38. Kc2 {[%emt 0:01:15]} Kd6 {[%emt 0:00:12]} 39. Kc3 {[%emt 0:00:25]} Kd5 {[%emt 0:00:07]} 40. b4 {[%emt 0:03:23]} b5 {[%emt 0:03:59]} 41. Rh1 {[%emt 0:33:26]} e2 {[%emt 0:31:20]} 42. Kd2 {[%emt 0:00:54]} Rg2 {[%emt 0:00:29]} 43. Rh5+ {[%emt 0:01:27]} Kxd4 {[%emt 0:06:28]} 1/2-1/2

[Event "CZE-ch Youth G10-G12-G14 2022"]
[Site "Luhacovice"]
[Date "2022.03.14"]
[Round "3.43"]
[White "Urvalkova Ema"]
[Black "Lipovska Viktorie"]
[Result "0-1"]
[ECO "C57"]
[WhiteElo "1000"]
[BlackElo "1189"]
[Annotator "NA"]
[PlyCount "88"]
[EventDate "2022.03.12"]
[EventType "swiss"]
[EventCountry "CZE"]
[SourceTitle "playchess.com"]
[Source "ChessBase"]
[SourceQuality "1"]
[TimeControl "40/5400+30:1800+30"]

1. e4 {[%emt 0:00:05]} e5 {[%emt 0:00:06]} 2. Nf3 {[%emt 0:00:24]} Nc6 {[%emt 0:00:06]} 3. Bc4 {[%emt 0:00:05]} Nf6 {[%emt 0:00:12]} 4. Ng5 {[%emt 0:00:08]} d5 {[%emt 0:00:14]} 5. exd5 {[%emt 0:00:22]} Nxd5 {[%emt 0:00:10]} 6. Nxf7 {[%emt 0:00:11]} Kxf7 {[%emt 0:00:15]} 7. Qf3+ {[%emt 0:00:26]} Ke6 {[%emt 0:00:11]} 8. Nc3 {[%emt 0:00:35]} Ncb4 {[%emt 0:00:31]} 9. Qe4 {[%emt 0:00:52]} c6 {[%emt 0:00:17]} 10. d4 {[%emt 0:00:59]} Qf6 {[%emt 0:00:17]} 11. f4 {[%emt 0:00:45]} Qf5 {[%emt 0:03:31]} 12. dxe5 {[%emt 0:01:46]} Qxe4+ {[%emt 0:03:15]} 13. Nxe4 {[%emt 0:00:29]} Nxc2+ {[%emt 0:01:16]} 14. Kd1 {[%emt 0:00:19]} Nxa1 {[%emt 0:00:35]} 15. Ng5+ {[%emt 0:00:27]} Ke7 {[%emt 0:00:38]} 16. h3 {[%emt 0:01:01]} Nb4 {[%emt 0:02:40]} 17. Bd2 {[%emt 0:00:20]} a5 {[%emt 0:02:01]} 18. Ke2 {[%emt 0:01:14]} b5 {[%emt 0:01:13]} 19. Bd3 {[%emt 0:00:42]} Nxd3 {[%emt 0:01:52]} 20. Rxa1 {[%emt 0:00:18]} Bf5 {[%emt 0:01:05]} 21. Be3 {[%emt 0:00:48]} h6 {[%emt 0:01:13]} 22. g4 {[%emt 0:00:54]} hxg5 {[%emt 0:00:51]} 23. gxf5 {[%emt 0:01:23]} Nxb2 {[%emt 0:00:03]} 24. fxg5 {[%emt 0:00:45]} Rxh3 {[%emt 0:00:09]} 25. Bc5+ {[%emt 0:00:25]} Kf7 {[%emt 0:00:30]} 26. Bd4 {[%emt 0:01:04]} Rh2+ {[%emt 0:01:15]} 27. Kf3 {[%emt 0:00:55]} Ba3 {[%emt 0:00:51]} 28. g6+ {[%emt 0:01:02]} Ke7 {[%emt 0:00:27]} 29. f6+ {[%emt 0:00:27]} gxf6 {[%emt 0:00:33]} 30. exf6+ {[%emt 0:00:37]} Kd6 {[%emt 0:00:14]} 31. Bxb2 {[%emt 0:00:36]} Bxb2 {[%emt 0:01:17]} 32. Rd1+ {[%emt 0:00:21]} Ke6 {[%emt 0:00:12]} 33. f7 {[%emt 0:00:23]} Kf6 {[%emt 0:00:21]} 34. Rd6+ {[%emt 0:01:00]} Kg7 {[%emt 0:01:35]} 35. Rxc6 {[%emt 0:00:16]} Rh6 {[%emt 0:00:46]} 36. Rc2 {[%emt 0:00:37]} Rxg6 {[%emt 0:01:45]} 37. Rxb2 {[%emt 0:00:22]} Rf8 {[%emt 0:00:21]} 38. Rxb5 {[%emt 0:00:09]} Rxf7+ {[%emt 0:00:47]} 39. Ke4 {[%emt 0:00:16]} a4 {[%emt 0:00:22]} 40. a3 {[%emt 0:00:51]} Rg3 {[%emt 0:00:31]} 41. Ra5 {[%emt 0:30:15]} Rxa3 {[%emt 0:31:13]} 42. Rg5+ {[%emt 0:00:22]} Kh6 {[%emt 0:00:13]} 43. Re5 {[%emt 0:00:15]} Rf2 {[%emt 0:00:35]} 44. Re6+ {[%emt 0:00:20]} Rf6 {[%emt 0:00:50]} 0-1